[Event "*** SCC Grand Prix: Titled Tuesday Blitz"]
[Site "Chess.com"]
[Date "2020.08.04"]
[Round "4"]
[White "ClydeHillKid"]
[Black "ace_mar"]
[Result "0-1"]
[WhiteElo "2307"]
[BlackElo "2474"]
[TimeControl "180+1"]
[EndTime "14:22:19 PDT"]
[Termination "ace_mar won by resignation"]

1. e4 {[%clk 0:03:00.9]} 1... e5 {[%clk 0:03:00.2]} 2. Nf3 {[%clk 0:03:00.5]}
2... Nc6 {[%clk 0:03:00.6]} 3. Bc4 {[%clk 0:03:00.5]} 3... Bc5 {[%clk
0:03:00.5]} 4. c3 {[%clk 0:02:59.1]} 4... Nf6 {[%clk 0:03:00.7]} 5. d3 {[%clk
0:02:57.3]} 5... O-O {[%clk 0:03:00.7]} 6. O-O {[%clk 0:02:53.6]} 6... d5 {[%clk
0:03:00.9]} 7. exd5 {[%clk 0:02:53]} 7... Nxd5 {[%clk 0:03:01.8]} 8. Re1 {[%clk
0:02:53]} 8... Bg4 {[%clk 0:03:01.7]} 9. b4 {[%clk 0:02:48]} 9... Be7 {[%clk
0:02:54.6]} 10. Nbd2 {[%clk 0:02:32.5]} 10... Nb6 {[%clk 0:02:53.8]} 11. b5
{[%clk 0:02:22.7]} 11... Na5 {[%clk 0:02:44.4]} 12. Bb3 {[%clk 0:02:13.3]} 12...
Nxb3 {[%clk 0:01:59.5]} 13. Nxb3 {[%clk 0:02:02.2]} 13... f6 {[%clk 0:01:55.2]}
14. c4 {[%clk 0:01:57.7]} 14... Qd7 {[%clk 0:01:41.2]} 15. Bb2 {[%clk
0:01:45.6]} 15... Rad8 {[%clk 0:01:40.6]} 16. d4 {[%clk 0:01:30.2]} 16... Nxc4
{[%clk 0:01:39.1]} 17. Bc3 {[%clk 0:01:26.1]} 17... Qxb5 {[%clk 0:01:29.5]} 18.
Qe2 {[%clk 0:01:09.9]} 18... Nd6 {[%clk 0:01:17]} 19. Qe3 {[%clk 0:00:39.8]}
19... e4 {[%clk 0:01:04.6]} 20. Nfd2 {[%clk 0:00:35.9]} 20... f5 {[%clk
0:00:58.4]} 21. g3 {[%clk 0:00:22]} 21... h6 {[%clk 0:00:53.1]} 22. h4 {[%clk
0:00:17.4]} 22... Rde8 {[%clk 0:00:44.1]} 23. Nc5 {[%clk 0:00:15.9]} 23... f4
{[%clk 0:00:32.4]} 24. gxf4 {[%clk 0:00:14.6]} 24... Bxh4 {[%clk 0:00:32.7]} 25.
d5 {[%clk 0:00:12.4]} 25... Nf5 {[%clk 0:00:26.3]} 26. Qxe4 {[%clk 0:00:09.4]}
26... Rxe4 {[%clk 0:00:25.8]} 27. Rxe4 {[%clk 0:00:10.3]} 27... Qxc5 {[%clk
0:00:25.6]} 0-1

[Event "*** SCC Grand Prix: Titled Tuesday Blitz"]
[Site "Chess.com"]
[Date "2020.08.04"]
[Round "4"]
[White "manitodeplomo"]
[Black "Caterpiller35"]
[Result "1-0"]
[WhiteElo "2554"]
[BlackElo "2375"]
[TimeControl "180+1"]
[EndTime "14:22:23 PDT"]
[Termination "manitodeplomo won by resignation"]

1. g3 {[%clk 0:02:59.7]} 1... d5 {[%clk 0:02:59.3]} 2. Bg2 {[%clk 0:02:59.9]}
2... Nf6 {[%clk 0:02:53.5]} 3. c4 {[%clk 0:03:00.5]} 3... e6 {[%clk 0:02:54.4]}
4. Nc3 {[%clk 0:02:58.9]} 4... Be7 {[%clk 0:02:54.9]} 5. Nf3 {[%clk 0:02:57.1]}
5... O-O {[%clk 0:02:55.4]} 6. O-O {[%clk 0:02:57.5]} 6... Nbd7 {[%clk
0:02:51.9]} 7. d4 {[%clk 0:02:52.5]} 7... dxc4 {[%clk 0:02:51.3]} 8. e3 {[%clk
0:02:49.6]} 8... c6 {[%clk 0:02:50.8]} 9. a4 {[%clk 0:02:40.7]} 9... Nd5 {[%clk
0:02:48.8]} 10. Qe2 {[%clk 0:02:33.3]} 10... a5 {[%clk 0:02:44.6]} 11. Qxc4
{[%clk 0:02:31.5]} 11... Bb4 {[%clk 0:02:43.2]} 12. e4 {[%clk 0:02:29.1]} 12...
N7b6 {[%clk 0:02:37.7]} 13. Qb3 {[%clk 0:02:24.7]} 13... Nf6 {[%clk 0:02:35.3]}
14. e5 {[%clk 0:02:17.6]} 14... Nfd5 {[%clk 0:02:31.6]} 15. Ne4 {[%clk
0:02:17.9]} 15... Nd7 {[%clk 0:02:23.3]} 16. Qc2 {[%clk 0:02:13.1]} 16... b6
{[%clk 0:02:16.1]} 17. Neg5 {[%clk 0:02:12.3]} 17... g6 {[%clk 0:02:09.8]} 18.
Qe4 {[%clk 0:02:02.5]} 18... f5 {[%clk 0:01:22.8]} 19. Qc2 {[%clk 0:01:49.9]}
19... Qe7 {[%clk 0:01:18.7]} 20. Qxc6 {[%clk 0:01:43.5]} 20... Ba6 {[%clk
0:01:17.6]} 21. Qxe6+ {[%clk 0:01:43.3]} 21... Qxe6 {[%clk 0:01:17]} 22. Nxe6
{[%clk 0:01:44.2]} 22... Bxf1 {[%clk 0:01:14.6]} 23. Kxf1 {[%clk 0:01:30.8]}
23... Rfe8 {[%clk 0:01:12.1]} 24. Nfg5 {[%clk 0:01:29.4]} 24... Ne7 {[%clk
0:00:35.1]} 25. Nc7 {[%clk 0:01:17.3]} 25... Rac8 {[%clk 0:00:29.6]} 26. Nxe8
{[%clk 0:01:16.5]} 26... Rxe8 {[%clk 0:00:29.2]} 27. h4 {[%clk 0:01:11.2]} 27...
h6 {[%clk 0:00:22.3]} 28. Ne6 {[%clk 0:01:04.5]} 28... Kf7 {[%clk 0:00:22.2]}
29. Nf4 {[%clk 0:00:55.4]} 29... Nf8 {[%clk 0:00:14.2]} 30. Be3 {[%clk
0:00:49.4]} 30... Rc8 {[%clk 0:00:13.2]} 31. Rc1 {[%clk 0:00:47.8]} 31... Rd8
{[%clk 0:00:13.1]} 32. d5 {[%clk 0:00:40.1]} 32... g5 {[%clk 0:00:09.4]} 33.
hxg5 {[%clk 0:00:39.5]} 33... h5 {[%clk 0:00:10.3]} 34. e6+ {[%clk 0:00:39]} 1-0

[Event "*** SCC Grand Prix: Titled Tuesday Blitz"]
[Site "Chess.com"]
[Date "2020.08.04"]
[Round "4"]
[White "coocloo"]
[Black "serena-maria"]
[Result "0-1"]
[WhiteElo "1991"]
[BlackElo "2249"]
[TimeControl "180+1"]
[EndTime "14:22:28 PDT"]
[Termination "serena-maria won by resignation"]

1. e4 {[%clk 0:03:00.9]} 1... c6 {[%clk 0:02:58.1]} 2. d4 {[%clk 0:03:00.3]}
2... d5 {[%clk 0:02:58.5]} 3. exd5 {[%clk 0:03:01.2]} 3... cxd5 {[%clk
0:02:58.3]} 4. Nf3 {[%clk 0:03:01.8]} 4... Nf6 {[%clk 0:02:53.7]} 5. Bd3 {[%clk
0:03:01]} 5... g6 {[%clk 0:02:51.4]} 6. O-O {[%clk 0:02:59.5]} 6... Bg7 {[%clk
0:02:51.6]} 7. c3 {[%clk 0:02:59]} 7... O-O {[%clk 0:02:51.5]} 8. Re1 {[%clk
0:02:58.1]} 8... Bg4 {[%clk 0:02:50.7]} 9. h3 {[%clk 0:02:58.1]} 9... Bxf3
{[%clk 0:02:50.9]} 10. Qxf3 {[%clk 0:02:58.5]} 10... Nc6 {[%clk 0:02:50.8]} 11.
Bf4 {[%clk 0:02:58.3]} 11... Qb6 {[%clk 0:02:49.1]} 12. Qe2 {[%clk 0:02:53.1]}
12... Rac8 {[%clk 0:02:40.6]} 13. Na3 {[%clk 0:02:42.3]} 13... a6 {[%clk
0:02:38.7]} 14. Rab1 {[%clk 0:02:36.9]} 14... Qa5 {[%clk 0:02:33.6]} 15. Qd1
{[%clk 0:02:33.4]} 15... Nd7 {[%clk 0:02:19]} 16. Qb3 {[%clk 0:02:30.7]} 16...
e5 {[%clk 0:02:08.9]} 17. dxe5 {[%clk 0:02:30.1]} 17... Ndxe5 {[%clk 0:02:07.8]}
18. Bf1 {[%clk 0:02:25.1]} 18... Rfd8 {[%clk 0:01:29.8]} 19. Nc2 {[%clk
0:02:10.8]} 19... Rd7 {[%clk 0:01:11.4]} 20. Rbd1 {[%clk 0:02:02.4]} 20... Rcd8
{[%clk 0:01:08.3]} 21. Nd4 {[%clk 0:01:58.7]} 21... Nxd4 {[%clk 0:00:53.5]} 22.
cxd4 {[%clk 0:01:58.2]} 22... Nc6 {[%clk 0:00:50.2]} 23. Be3 {[%clk 0:01:57.3]}
23... Qb4 {[%clk 0:00:46.2]} 24. Qxb4 {[%clk 0:01:45.4]} 24... Nxb4 {[%clk
0:00:47.1]} 25. a3 {[%clk 0:01:43.7]} 25... Nc2 {[%clk 0:00:45.7]} 26. Re2
{[%clk 0:01:41.4]} 26... Nxe3 {[%clk 0:00:44.3]} 27. Rxe3 {[%clk 0:01:42.3]}
27... Rc7 {[%clk 0:00:40.4]} 28. g4 {[%clk 0:01:33]} 28... Kf8 {[%clk
0:00:28.5]} 29. Bg2 {[%clk 0:01:32.3]} 29... Rc2 {[%clk 0:00:24.6]} 30. b4
{[%clk 0:01:31.4]} 30... Rc4 {[%clk 0:00:21.4]} 31. Red3 {[%clk 0:01:30.2]}
31... Ke7 {[%clk 0:00:20.4]} 32. Re1+ {[%clk 0:01:29.2]} 32... Kd6 {[%clk
0:00:20.3]} 33. f4 {[%clk 0:01:27.4]} 33... Rxd4 {[%clk 0:00:18.5]} 34. Rxd4
{[%clk 0:01:27]} 34... Bxd4+ {[%clk 0:00:19.4]} 35. Kf1 {[%clk 0:01:25.8]} 35...
Bc3 {[%clk 0:00:19.6]} 36. Re3 {[%clk 0:01:25]} 36... d4 {[%clk 0:00:19.7]} 37.
Rd3 {[%clk 0:01:24.7]} 37... b6 {[%clk 0:00:19.9]} 38. Ke2 {[%clk 0:01:24.1]}
38... Re8+ {[%clk 0:00:20.3]} 39. Kf3 {[%clk 0:01:24.3]} 39... Re1 {[%clk
0:00:20.4]} 40. f5 {[%clk 0:01:21.7]} 40... Kd5 {[%clk 0:00:19.5]} 41. fxg6
{[%clk 0:01:20.7]} 41... hxg6 {[%clk 0:00:19.4]} 42. Kf2+ {[%clk 0:01:13.7]}
42... Kc4 {[%clk 0:00:19.6]} 43. Rxc3+ {[%clk 0:01:13.5]} 43... dxc3 {[%clk
0:00:18.7]} 44. Kxe1 {[%clk 0:01:13.9]} 44... Kb3 {[%clk 0:00:18.8]} 45. Bd5+
{[%clk 0:01:13]} 45... Kxa3 {[%clk 0:00:17.3]} 46. Bxf7 {[%clk 0:01:07.6]} 46...
c2 {[%clk 0:00:16.4]} 47. Kd2 {[%clk 0:01:03.5]} 47... Kb2 {[%clk 0:00:16.3]}
48. Bxg6 {[%clk 0:01:02.7]} 48... c1=Q+ {[%clk 0:00:16.3]} 0-1

[Event "*** SCC Grand Prix: Titled Tuesday Blitz"]
[Site "Chess.com"]
[Date "2020.08.04"]
[Round "4"]
[White "Keithonsky"]
[Black "Sanan_Sjugirov"]
[Result "1-0"]
[WhiteElo "2566"]
[BlackElo "2821"]
[TimeControl "180+1"]
[EndTime "14:22:29 PDT"]
[Termination "Keithonsky won on time"]

1. d4 {[%clk 0:03:00.9]} 1... Nf6 {[%clk 0:02:59.7]} 2. c4 {[%clk 0:03:01.4]}
2... e6 {[%clk 0:03:00.3]} 3. Nf3 {[%clk 0:03:01.1]} 3... b6 {[%clk 0:02:55.5]}
4. g3 {[%clk 0:03:00.7]} 4... Ba6 {[%clk 0:02:54.2]} 5. Qa4 {[%clk 0:03:00.9]}
5... Bb7 {[%clk 0:02:53.4]} 6. Bg2 {[%clk 0:03:01]} 6... c5 {[%clk 0:02:53.5]}
7. dxc5 {[%clk 0:03:01.9]} 7... bxc5 {[%clk 0:02:53.6]} 8. Nc3 {[%clk
0:03:02.2]} 8... Be7 {[%clk 0:02:50]} 9. O-O {[%clk 0:03:02.7]} 9... O-O {[%clk
0:02:50]} 10. Rd1 {[%clk 0:03:03.4]} 10... Qb6 {[%clk 0:02:46.4]} 11. Qc2 {[%clk
0:03:01.7]} 11... Nc6 {[%clk 0:02:37.3]} 12. a3 {[%clk 0:03:00]} 12... Rfd8
{[%clk 0:02:35.3]} 13. Bf4 {[%clk 0:02:39.4]} 13... d6 {[%clk 0:02:29]} 14. Rab1
{[%clk 0:02:37.5]} 14... a5 {[%clk 0:02:20.8]} 15. h3 {[%clk 0:02:35.1]} 15...
h6 {[%clk 0:02:19.9]} 16. Na4 {[%clk 0:02:32.8]} 16... Qa7 {[%clk 0:02:16.8]}
17. Nc3 {[%clk 0:02:33.2]} 17... e5 {[%clk 0:02:13.2]} 18. Nb5 {[%clk
0:02:22.8]} 18... Qb6 {[%clk 0:02:12.8]} 19. Bd2 {[%clk 0:02:23.3]} 19... Na7
{[%clk 0:01:44.1]} 20. Nc3 {[%clk 0:02:04.1]} 20... Nc6 {[%clk 0:01:43.6]} 21.
Nb5 {[%clk 0:02:03.7]} 21... Rdb8 {[%clk 0:01:31.9]} 22. e3 {[%clk 0:01:54.4]}
22... a4 {[%clk 0:01:28.3]} 23. Be1 {[%clk 0:01:49.3]} 23... Na5 {[%clk
0:01:24]} 24. Bxa5 {[%clk 0:01:44.8]} 24... Qxa5 {[%clk 0:01:16.1]} 25. Nh4
{[%clk 0:01:44.1]} 25... Bxg2 {[%clk 0:01:12.1]} 26. Kxg2 {[%clk 0:01:45]} 26...
Rxb5 {[%clk 0:00:59.1]} 27. cxb5 {[%clk 0:01:44.6]} 27... Qxb5 {[%clk 0:01:00]}
28. Nf5 {[%clk 0:01:42.9]} 28... Bf8 {[%clk 0:01:00.3]} 29. e4 {[%clk
0:01:42.7]} 29... Qc6 {[%clk 0:00:57.8]} 30. f3 {[%clk 0:01:42.4]} 30... h5
{[%clk 0:00:46.6]} 31. h4 {[%clk 0:01:41.7]} 31... g6 {[%clk 0:00:41.1]} 32. Ne3
{[%clk 0:01:41.7]} 32... Bh6 {[%clk 0:00:40.8]} 33. Nd5 {[%clk 0:01:41.7]} 33...
Nxd5 {[%clk 0:00:40.2]} 34. Rxd5 {[%clk 0:01:42.6]} 34... Be3 {[%clk 0:00:40.3]}
35. Re1 {[%clk 0:01:22.2]} 35... Bd4 {[%clk 0:00:39.8]} 36. f4 {[%clk
0:01:22.8]} 36... Rb8 {[%clk 0:00:35.7]} 37. Rb1 {[%clk 0:01:23.3]} 37... Rb3
{[%clk 0:00:27.2]} 38. Qc4 {[%clk 0:01:19.3]} 38... Qb6 {[%clk 0:00:22.6]} 39.
fxe5 {[%clk 0:01:14.7]} 39... Bxe5 {[%clk 0:00:20.4]} 40. Rxe5 {[%clk
0:01:06.2]} 1-0

[Event "*** SCC Grand Prix: Titled Tuesday Blitz"]
[Site "Chess.com"]
[Date "2020.08.04"]
[Round "4"]
[White "WanderingPuppet"]
[Black "praveenb2002"]
[Result "0-1"]
[WhiteElo "2508"]
[BlackElo "2782"]
[TimeControl "180+1"]
[EndTime "14:22:33 PDT"]
[Termination "praveenb2002 won on time"]

1. e4 {[%clk 0:03:00.9]} 1... c5 {[%clk 0:02:56.4]} 2. Nf3 {[%clk 0:03:00.8]}
2... d6 {[%clk 0:02:56.4]} 3. d4 {[%clk 0:03:01.3]} 3... cxd4 {[%clk 0:02:56.3]}
4. Nxd4 {[%clk 0:03:02.2]} 4... Nf6 {[%clk 0:02:56.2]} 5. Nc3 {[%clk 0:03:02.7]}
5... Nc6 {[%clk 0:02:54.5]} 6. Bg5 {[%clk 0:03:02.5]} 6... e6 {[%clk 0:02:54.3]}
7. Qd2 {[%clk 0:03:02.8]} 7... a6 {[%clk 0:02:53.2]} 8. O-O-O {[%clk 0:03:03]}
8... Bd7 {[%clk 0:02:53]} 9. f3 {[%clk 0:03:03.3]} 9... Be7 {[%clk 0:02:50.1]}
10. h4 {[%clk 0:03:03]} 10... b5 {[%clk 0:02:50.1]} 11. g4 {[%clk 0:02:58.6]}
11... Rc8 {[%clk 0:02:39.2]} 12. Nxc6 {[%clk 0:02:57.7]} 12... Bxc6 {[%clk
0:02:38.7]} 13. Be3 {[%clk 0:02:31.6]} 13... b4 {[%clk 0:02:32.6]} 14. Ne2
{[%clk 0:02:30.5]} 14... Qa5 {[%clk 0:02:15.2]} 15. Kb1 {[%clk 0:02:26]} 15...
Nxe4 {[%clk 0:02:12.7]} 16. fxe4 {[%clk 0:02:18.1]} 16... Bxe4 {[%clk
0:02:12.2]} 17. Rh2 {[%clk 0:01:59.5]} 17... Rxc2 {[%clk 0:02:04.4]} 18. Qxc2
{[%clk 0:02:00.4]} 18... Bxc2+ {[%clk 0:02:04.7]} 19. Kxc2 {[%clk 0:02:01.3]}
19... Qxa2 {[%clk 0:02:04.9]} 20. Nc1 {[%clk 0:01:50.4]} 20... Qa4+ {[%clk
0:01:55.4]} 21. b3 {[%clk 0:01:34]} 21... Qc6+ {[%clk 0:01:55.3]} 22. Kb1 {[%clk
0:01:11.6]} 22... Qe4+ {[%clk 0:01:54.9]} 23. Rd3 {[%clk 0:01:07.5]} 23... O-O
{[%clk 0:01:54.9]} 24. Rd2 {[%clk 0:00:32.4]} 24... Qxg4 {[%clk 0:01:51]} 25.
Be2 {[%clk 0:00:25.3]} 25... Qxh4 {[%clk 0:01:47.4]} 26. Rd4 {[%clk 0:00:25.4]}
26... Qh3 {[%clk 0:01:41.6]} 27. R2d3 {[%clk 0:00:19.1]} 27... Qf5 {[%clk
0:01:01.2]} 28. Bg4 {[%clk 0:00:17.8]} 28... Qb5 {[%clk 0:00:54.9]} 29. Be2
{[%clk 0:00:15.4]} 29... d5 {[%clk 0:00:50.5]} 30. Rg4 {[%clk 0:00:12.4]} 30...
Bf6 {[%clk 0:00:44.7]} 31. Bd4 {[%clk 0:00:06.1]} 31... Bxd4 {[%clk 0:00:37]}
32. Rdxd4 {[%clk 0:00:07]} 32... Qc5 {[%clk 0:00:31.2]} 33. Rxb4 {[%clk
0:00:05.8]} 33... Rc8 {[%clk 0:00:29.5]} 0-1

[Event "*** SCC Grand Prix: Titled Tuesday Blitz"]
[Site "Chess.com"]
[Date "2020.08.04"]
[Round "4"]
[White "vovachesss"]
[Black "GM_dmitrij"]
[Result "0-1"]
[WhiteElo "2585"]
[BlackElo "2875"]
[TimeControl "180+1"]
[EndTime "14:22:34 PDT"]
[Termination "GM_dmitrij won by checkmate"]

1. d4 {[%clk 0:03:00.9]} 1... Nf6 {[%clk 0:02:08.4]} 2. Nc3 {[%clk 0:03:00.4]}
2... g6 {[%clk 0:02:09.3]} 3. e4 {[%clk 0:03:00.6]} 3... d5 {[%clk 0:02:09.4]}
4. e5 {[%clk 0:03:00.1]} 4... Ne4 {[%clk 0:02:09.2]} 5. Bd3 {[%clk 0:02:59.5]}
5... Nxc3 {[%clk 0:02:08.9]} 6. bxc3 {[%clk 0:03:00.4]} 6... c5 {[%clk
0:02:09.7]} 7. h4 {[%clk 0:03:00.5]} 7... h5 {[%clk 0:02:07]} 8. Nf3 {[%clk
0:03:00.5]} 8... Bg4 {[%clk 0:02:05.9]} 9. Be3 {[%clk 0:02:57.2]} 9... Nc6
{[%clk 0:02:05.9]} 10. Rb1 {[%clk 0:02:52.2]} 10... Qc7 {[%clk 0:01:59.9]} 11.
Be2 {[%clk 0:02:44.2]} 11... e6 {[%clk 0:01:58.5]} 12. Bg5 {[%clk 0:02:41.7]}
12... Be7 {[%clk 0:01:57.4]} 13. Bxe7 {[%clk 0:02:41.3]} 13... Nxe7 {[%clk
0:01:56.1]} 14. Ng5 {[%clk 0:02:42.2]} 14... Bxe2 {[%clk 0:01:55]} 15. Qxe2
{[%clk 0:02:42.4]} 15... b6 {[%clk 0:01:42.8]} 16. Qb5+ {[%clk 0:02:31.9]} 16...
Kf8 {[%clk 0:01:42.6]} 17. dxc5 {[%clk 0:02:31.8]} 17... Kg7 {[%clk 0:01:35]}
18. cxb6 {[%clk 0:02:17.4]} 18... Qxe5+ {[%clk 0:01:27.8]} 19. Kf1 {[%clk
0:02:17.8]} 19... axb6 {[%clk 0:01:27.7]} 20. Qd7 {[%clk 0:02:12.4]} 20... Rhe8
{[%clk 0:01:23.9]} 21. Re1 {[%clk 0:02:11.5]} 21... Qf6 {[%clk 0:01:12.9]} 22.
Rh3 {[%clk 0:02:07.8]} 22... Rad8 {[%clk 0:01:12.2]} 23. Qc7 {[%clk 0:02:06.6]}
23... Rc8 {[%clk 0:01:12]} 24. Qd7 {[%clk 0:02:01.1]} 24... Kg8 {[%clk
0:01:07.8]} 25. c4 {[%clk 0:01:26.8]} 25... Red8 {[%clk 0:01:01.7]} 26. Qb7
{[%clk 0:01:17.3]} 26... Rxc4 {[%clk 0:01:01.2]} 27. Qxb6 {[%clk 0:01:08.2]}
27... Nf5 {[%clk 0:01:01.4]} 28. Nxe6 {[%clk 0:01:03]} 28... Re8 {[%clk
0:00:53.6]} 29. Ra3 {[%clk 0:00:40]} 29... Rxe6 {[%clk 0:00:44.8]} 30. Rxe6
{[%clk 0:00:38.9]} 30... Qxe6 {[%clk 0:00:44.5]} 31. Ra8+ {[%clk 0:00:39.3]}
31... Kh7 {[%clk 0:00:43.1]} 32. Qd8 {[%clk 0:00:38.8]} 32... Qe5 {[%clk
0:00:32.6]} 33. Ra7 {[%clk 0:00:17.3]} 33... Qa1+ {[%clk 0:00:31.2]} 34. Ke2
{[%clk 0:00:16.4]} 34... Re4+ {[%clk 0:00:32.1]} 35. Kd2 {[%clk 0:00:10.2]}
35... Qe1+ {[%clk 0:00:29.3]} 36. Kd3 {[%clk 0:00:10.1]} 36... Rd4# {[%clk
0:00:29.4]} 0-1

[Event "*** SCC Grand Prix: Titled Tuesday Blitz"]
[Site "Chess.com"]
[Date "2020.08.04"]
[Round "4"]
[White "DariaVoit"]
[Black "Batsai"]
[Result "1-0"]
[WhiteElo "2531"]
[BlackElo "2363"]
[TimeControl "180+1"]
[EndTime "14:22:37 PDT"]
[Termination "DariaVoit won on time"]

1. d4 {[%clk 0:03:00.9]} 1... Nf6 {[%clk 0:02:58.9]} 2. Nf3 {[%clk 0:03:01.1]}
2... g6 {[%clk 0:02:59.8]} 3. c4 {[%clk 0:03:01]} 3... Bg7 {[%clk 0:03:00.7]} 4.
Nc3 {[%clk 0:03:01.6]} 4... O-O {[%clk 0:03:01.2]} 5. g3 {[%clk 0:03:01.6]} 5...
d6 {[%clk 0:03:01]} 6. Bg2 {[%clk 0:03:02.1]} 6... Nbd7 {[%clk 0:03:00.5]} 7.
O-O {[%clk 0:03:02.6]} 7... e5 {[%clk 0:03:01.1]} 8. e4 {[%clk 0:03:02.4]} 8...
c6 {[%clk 0:02:56.3]} 9. h3 {[%clk 0:03:01.4]} 9... Qb6 {[%clk 0:02:53.5]} 10.
d5 {[%clk 0:02:58.2]} 10... Qa6 {[%clk 0:02:33.4]} 11. Nd2 {[%clk 0:02:23.3]}
11... Nb6 {[%clk 0:02:20.1]} 12. b3 {[%clk 0:02:18.8]} 12... cxd5 {[%clk
0:02:13.7]} 13. cxd5 {[%clk 0:02:16.2]} 13... Bd7 {[%clk 0:02:06.6]} 14. Re1
{[%clk 0:02:15.3]} 14... Rac8 {[%clk 0:02:04.4]} 15. Bb2 {[%clk 0:02:13.9]}
15... Qa5 {[%clk 0:00:57.8]} 16. Rc1 {[%clk 0:02:09.3]} 16... Bb5 {[%clk
0:00:05.9]} 17. Nxb5 {[%clk 0:01:30.3]} 17... Qxb5 {[%clk 0:00:06.8]} 18. Bf1
{[%clk 0:01:30.4]} 18... Qd7 {[%clk 0:00:06.4]} 19. a4 {[%clk 0:01:24]} 19...
Rxc1 {[%clk 0:00:05.8]} 20. Qxc1 {[%clk 0:01:22]} 20... Ne8 {[%clk 0:00:06.2]}
21. Bb5 {[%clk 0:01:16.7]} 21... Qxh3 {[%clk 0:00:05.4]} 22. a5 {[%clk
0:01:11.1]} 22... Nc8 {[%clk 0:00:04]} 23. Ba3 {[%clk 0:01:00.5]} 23... f5
{[%clk 0:00:03.4]} 24. Qxc8 {[%clk 0:00:58.7]} 24... Nf6 {[%clk 0:00:01.9]} 25.
Qe6+ {[%clk 0:00:57.4]} 25... Kh8 {[%clk 0:00:02.2]} 26. Bf1 {[%clk 0:00:53.2]}
26... Qh6 {[%clk 0:00:01.3]} 27. Nf3 {[%clk 0:00:43.2]} 27... fxe4 {[%clk
0:00:01.5]} 28. Nh2 {[%clk 0:00:40.8]} 28... Re8 {[%clk 0:00:01.9]} 29. Qxd6
{[%clk 0:00:38.7]} 29... e3 {[%clk 0:00:02.3]} 30. Rxe3 {[%clk 0:00:37.2]} 30...
e4 {[%clk 0:00:02.2]} 31. Bb2 {[%clk 0:00:32.4]} 31... Nh5 {[%clk 0:00:01.7]}
32. Ng4 {[%clk 0:00:28.8]} 1-0

[Event "*** SCC Grand Prix: Titled Tuesday Blitz"]
[Site "Chess.com"]
[Date "2020.08.04"]
[Round "4"]
[White "wannabe2700"]
[Black "Nara_Kh"]
[Result "1-0"]
[WhiteElo "2676"]
[BlackElo "2338"]
[TimeControl "180+1"]
[EndTime "14:22:39 PDT"]
[Termination "wannabe2700 won by resignation"]

1. d4 {[%clk 0:03:00.8]} 1... d5 {[%clk 0:02:58.2]} 2. c4 {[%clk 0:03:01.2]}
2... c6 {[%clk 0:02:57.8]} 3. cxd5 {[%clk 0:03:01.6]} 3... cxd5 {[%clk
0:02:57.8]} 4. Bf4 {[%clk 0:03:02.2]} 4... Nf6 {[%clk 0:02:54]} 5. e3 {[%clk
0:03:02.3]} 5... Nc6 {[%clk 0:02:53.6]} 6. Nc3 {[%clk 0:03:02.8]} 6... a6 {[%clk
0:02:51.1]} 7. Be2 {[%clk 0:03:02.4]} 7... Bf5 {[%clk 0:02:46.8]} 8. Nf3 {[%clk
0:02:59.8]} 8... e6 {[%clk 0:02:46.1]} 9. Qb3 {[%clk 0:02:44.1]} 9... Nb4 {[%clk
0:01:34.5]} 10. Rc1 {[%clk 0:02:38.5]} 10... Bd6 {[%clk 0:01:33.3]} 11. Bxd6
{[%clk 0:02:02.7]} 11... Qxd6 {[%clk 0:01:33.2]} 12. Ne5 {[%clk 0:02:03.5]}
12... O-O {[%clk 0:01:25.9]} 13. g4 {[%clk 0:01:46.6]} 13... Bg6 {[%clk
0:01:16.1]} 14. h4 {[%clk 0:01:46.3]} 14... h5 {[%clk 0:00:58]} 15. g5 {[%clk
0:01:43.5]} 15... Ne4 {[%clk 0:00:50.7]} 16. Nxg6 {[%clk 0:01:40.6]} 16... fxg6
{[%clk 0:00:49.1]} 17. Nxe4 {[%clk 0:01:23.9]} 17... dxe4 {[%clk 0:00:48]} 18.
O-O {[%clk 0:00:50.3]} 18... b5 {[%clk 0:00:29.6]} 19. Rc5 {[%clk 0:00:49.5]}
19... Nd5 {[%clk 0:00:24.9]} 20. Rfc1 {[%clk 0:00:43.5]} 20... Ra7 {[%clk
0:00:15.1]} 21. Rc6 {[%clk 0:00:41.3]} 21... Qd7 {[%clk 0:00:15.3]} 22. Bf1
{[%clk 0:00:40]} 22... Qf7 {[%clk 0:00:14.7]} 23. R1c2 {[%clk 0:00:37.7]} 23...
Qf3 {[%clk 0:00:14.5]} 24. Bg2 {[%clk 0:00:36.6]} 24... Qd1+ {[%clk 0:00:14.5]}
25. Kh2 {[%clk 0:00:36.5]} 25... Raf7 {[%clk 0:00:14.2]} 26. Rxe6 {[%clk
0:00:33.7]} 26... Rxf2 {[%clk 0:00:12.5]} 27. Rxf2 {[%clk 0:00:33.8]} 27... Qxb3
{[%clk 0:00:11.2]} 28. Rxf8+ {[%clk 0:00:33.3]} 28... Kxf8 {[%clk 0:00:11.4]}
29. axb3 {[%clk 0:00:34.2]} 29... Nxe3 {[%clk 0:00:11.9]} 30. Bxe4 {[%clk
0:00:32.9]} 30... Ng4+ {[%clk 0:00:10.9]} 31. Kg3 {[%clk 0:00:32.9]} 31... Kf7
{[%clk 0:00:11.2]} 32. d5 {[%clk 0:00:33]} 32... Ne3 {[%clk 0:00:10.6]} 33.
Bxg6+ {[%clk 0:00:32.7]} 1-0